Cogmind - Beta 15 @@@ ROGUE MODE // 2025.10.08 @ 19:52:16 Player: Zon Result: Destroyed by G-47 Trooper with Particle Gun Performance ------------- Evolutions (0) 0 Regions Visited (2) 400 Robots Destroyed (19) 95 Value Destroyed (368) 368 Prototype IDs (0) 0 Alien Tech Used (0) 0 Bonus (0) 0 TOTAL SCORE: 863 Bonus ------- None Cogmind --------- Core Integrity 0/250 Matter 288/300 Energy 100/100 System Corruption 0% Temperature Cool (9) Movement Walking (120) Location -10/Mines Parts ------- > --- POWER (1) -------- (None) > --- PROPULSION (2) --- Aluminum Leg Aluminum Leg > --- UTILITY (2) ------ Small Storage Unit Light Armor Plating > --- WEAPON (2) ------- Light Assault Rifle Light Assault Rifle > --- INVENTORY (8) ---- Light Ion Engine Light Treads Light Treads Aluminum Leg Aluminum Leg Aluminum Leg Light Assault Rifle Light Assault Rifle Peak State ------------ > --- POWER ------------ Light Ion Engine > --- PROPULSION ------- Aluminum Leg Aluminum Leg > --- UTILITY ---------- Small Storage Unit Improved Terrain Scanner > --- WEAPON ----------- Light Assault Rifle Light Assault Rifle > --- INVENTORY -------- Light Ion Engine Light Treads Light Treads Light Assault Rifle [Rating: 9] Favorites ----------- Power Light Ion Engine Engine Light Ion Engine Propulsion Aluminum Leg Leg Aluminum Leg Utility Small Storage Unit Device Improved Terrain Scanner Storage Small Storage Unit Protection Light Armor Plating Weapon Light Assault Rifle Energy Gun Particle Gun Ballistic Gun Light Assault Rifle Build | -11 -10 -10 ------- Run | Yrd Mat Min Slots Evolved . | . . . Power . | . . . Propulsion . | . . . Utility . | . . . Weapon . | . . . Parts Attached 14 | 7 5 2 Power 1 | 1 . . Engine 1 | 1 . . Core . | . . . Reactor . | . . . Propulsion 5 | 2 3 . Treads . | . . . Leg 5 | 2 3 . Wheel . | . . . Hover . | . . . Flight . | . . . Utility 3 | 2 1 . Device 1 | 1 . . Storage 1 | 1 . . Processor . | . . . Hackware . | . . . Protection 1 | . 1 . Artifact . | . . . Weapon 5 | 2 1 2 Energy Gun 1 | . 1 . Energy Cannon . | . . . Ballistic Gun 4 | 2 . 2 Ballistic Cannon . | . . . Launcher . | . . . Special Weapon . | . . . Impact Weapon . | . . . Slashing Weapon . | . . . Piercing Weapon . | . . . Special Melee Weapon . | . . . Unidentified Prototypes . | . . . Parts Lost 2 | . 1 1 Power 1 | . 1 . Propulsion . | . . . Utility . | . . . Weapon 1 | . . 1 Highest Loss Streak 1 | . 1 1 To Critical Strikes . | . . . Average Backups 5 | 2 5 7 Power . | . 1 1 Propulsion 3 | 1 3 5 Utility . | . . . Weapon 1 | . 1 1 Tool/Special . | . . . Unused Backups 6 | . . 6 Power 1 | . . 1 Propulsion 4 | . . 4 Utility . | . . . Weapon 1 | . . 1 Tool/Special . | . . . Average Slot Usage (%) 89 | . 93 84 Engine 4 | . 7 . Leg 28 | . 28 28 Device 6 | . 10 . Storage 14 | . 14 14 Protection 7 | . 3 14 Energy Gun 3 | . 4 1 Ballistic Gun 24 | . 23 26 Peak Build Rating 9 | 9 9 7 Average Rating 7 | 6 8 6 On Entrance 5 | . 9 7 Naked Turns . | . . . Heaviest Build 12 | 11 12 10 Greatest Support 20 | 20 20 20 Greatest Overweight (x) . | . . . Average Overweight (x) . | . . . Largest Inventory Capacity 8 | 8 8 8 Average Capacity 7 | 7 8 8 Most Carried 8 | 4 8 8 Average Carried 6 | 2 5 7 Final Capacity 8 | 8 8 8 Final Carried 8 | 4 7 8 Class Distribution -------------------- 93% | Mutant 6% | Scavenger-Mutant Dominant Class ---------------- Mutant | -10/Materials Mutant | -10/Mines Resources | -11 -10 -10 ----------- Run | Yrd Mat Min Matter Collected 480 | 290 155 35 Remotely . | . . . Salvage Created 544 | 110 359 75 Parts 36 | 5 19 12 Haulers Intercepted . | . . . Recyclers Shooed . | . . . Parts Field Recycled . | . . . Retrieved Matter . | . . . Parts Self-Destructed . | . . . Prevented . | . . . Kills | -11 -10 -10 ------- Run | Yrd Mat Min Combat Hostiles Destroyed 16 | . 10 6 Guns 16 | . 10 6 Classes Destroyed 5 | 2 3 . Worker 1 | . 1 . Tunneler 1 | 1 . . Recycler 1 | 1 . . Swarmer 9 | . 3 6 Grunt 7 | . 7 . Best Kill Streak 4 | 1 4 3 Combat Bots Only 4 | . 4 3 Max Kills in Single Turn 1 | 1 1 1 Gunslinging . | . . . Exploded . | . . . Melee . | . . . Uniques/NPCs Destroyed . | . . . Combat | -11 -10 -10 -------- Run | Yrd Mat Min Hostile Shots Fired 131 | . 70 61 Missed 31 | . 19 12 Hits 100 | . 51 49 Projectile 100 | . 51 49 Critical Strikes 2 | . 1 1 Damage Taken 1001 | . 580 421 Core 259 | . 171 88 Absorbed by Shields . | . . . Regen/Repaired (Parts) 56 | . 56 . Core Remaining (%) 100 | 100 . . Volleys Fired 79 | 10 49 20 Largest 2 | 2 2 2 Hottest 85 | 40 85 85 Shots Fired 158 | 20 98 40 Gun 158 | 20 98 40 Cannon . | . . . Launcher . | . . . Special . | . . . Kinetic 147 | 20 95 32 Thermal 11 | . 3 8 Explosive . | . . . Electromagnetic . | . . . Robot Hit Streak 10 | 6 10 3 Robot Miss Streak 4 | 2 4 4 Penetration Max . | . . . Secondary Targets 2 | . . 2 Max Gunslinging Chain 1 | . . 1 Shots Hit Robots 94 | 14 58 22 Core Hits 39 | 3 28 8 Critical Kills 1 | 1 . . Critical Parts Destroyed . | . . . Critical Strikes 2 | 1 1 . Burn 1 | . 1 . Destroy 1 | 1 . . Melee Attacks . | . . . Impact . | . . . Slashing . | . . . Piercing . | . . . Sneak Attacks . | . . . Combat Hostiles . | . . . Follow-up Attacks . | . . . Damage Inflicted 791 | 113 478 200 Guns 791 | 113 478 200 Cannons . | . . . Explosions . | . . . Melee . | . . . Ramming . | . . . Kinetic 700 | 113 448 139 Thermal 91 | . 30 61 Explosive . | . . . Electromagnetic . | . . . Impact . | . . . Slashing . | . . . Piercing . | . . . Highest Corruption . | . . . Average Corruption . | . . . Corruption Purged . | . . . Corruption Blocked . | . . . Overload Shots . | . . . Overflow Damage . | . . . Projectiles . | . . . Explosions . | . . . Melee . | . . . Knockbacks . | . . . Impact . | . . . Kinetic . | . . . Secondary . | . . . Self-Inflicted Damage . | . . . Shots . | . . . Rammed . | . . . Targets Rammed . | . . . Kicked . | . . . Crushed . | . . . Highest Temperature 188 | . 64 188 Average Temperature 49 | . 13 94 Received Heat Transfer 321 | . 270 51 Siege Activations . | . . . Martial Activations . | . . . Shielding Activations . | . . . Robots Disrupted . | . . . Combat Hostiles . | . . . Robots Corrupted . | . . . Combat Hostiles . | . . . Parts Fried . | . . . Impact Corruptions . | . . . Robots Melted . | . . . Combat Hostiles . | . . . Parts Melted . | . . . Heat Transferred 296 | . 148 148 Parts Sabotaged . | . . . Parts Stolen . | . . . Parts Stripped . | . . . Power Chain Reactions . | . . . Alert | -11 -10 -10 ------- Run | Yrd Mat Min Maximum Alert Level . | . . . Low Security (%) 100 | 100 100 100 Level 1 . | . . . Level 2 . | . . . Level 3 . | . . . Level 4 . | . . . Level 5 . | . . . High Security . | . . . Max Security . | . . . Peak Influence 150 | 5 150 103 Initial 53 | . . 53 Average 67 | 1 95 48 Influence Increases 490 | 10 340 140 Destroy 0b10 Robot/C 320 | . 200 120 Destroy 0b10 Robot/NC 15 | 10 5 . Destroy Leader 60 | . 40 20 Successful Hack 5 | . 5 . Select Force Hacks 30 | . 30 . Lose Combat Pursuer 60 | . 60 . Influence Decreases 470 | 10 202 258 Entered New Map 85 | . . 85 Time Decay 365 | 10 192 163 Lost Part 20 | . 10 10 Squads Dispatched 2 | . 2 . Investigation 2 | . 2 . Extermination . | . . . Reinforcement . | . . . Assault . | . . . Garrison . | . . . Intercept . | . . . Searches Triggered . | . . . Construction Impeded . | . . . Haulers Reinforced . | . . . Active Scanning Responses . | . . . Cargo Convoy Interrupts . | . . . Stealth | -11 -10 -10 --------- Run | Yrd Mat Min Distress Signals 3 | . 3 . Communications Jammed . | . . . Distress Signals . | . . . Times Spotted 29 | . 21 8 Peak Tracking Total 6 | . 6 3 Tactical Retreats 3 | . 3 . Traps | -11 -10 -10 ------- Run | Yrd Mat Min Traps Triggered . | . . . Indirectly . | . . . Trap Hack Attempts . | . . . Triggered . | . . . Disarmed . | . . . Reprogrammed . | . . . Reused . | . . . Traps Extracted . | . . . Installed . | . . . Triggered . | . . . Machines | -11 -10 -10 ---------- Run | Yrd Mat Min Machines Disabled . | . . . Max in Single Turn . | . . . Machines Repaired . | . . . Machines Dismantled . | . . . Machines Sabotaged . | . . . Overloaded Fab Kills . | . . . Hacking | -11 -10 -10 --------- Run | Yrd Mat Min Machines Accessed 5 | . 5 . Terminals 3 | . 3 . Fabricators . | . . . Repair Stations 1 | . 1 . Recycling Units 1 | . 1 . Scanalyzers . | . . . Garrison Access . | . . . Total Hacks 11 | . 11 . Successful 5 | . 5 . Failed 6 | . 6 . Catastrophic . | . . . Database Lockouts . | . . . Manual 1 | . 1 . Terminals 6 | . 6 . Fabricators . | . . . Repair Stations 3 | . 3 . Recycling Units 2 | . 2 . Scanalyzers . | . . . Garrison Access . | . . . Terminal Hacks 1 | . 1 . Investigation Status 1 | . 1 . Fabricator Hacks . | . . . Repair Station Hacks 2 | . 2 . Scan Component 1 | . 1 . Repair 1 | . 1 . Recycling Unit Hacks 1 | . 1 . Retrieve Components 1 | . 1 . Scanalyzer . | . . . Garrison Access Hacks . | . . . Unauthorized Hacks 1 | . 1 . Terminals . | . . . Fabricators . | . . . Repair Stations . | . . . Recycling Units 1 | . 1 . Tunnel 1 | . 1 . Scanalyzers . | . . . Garrison Access . | . . . Data Cores Recovered . | . . . Used . | . . . Hacking Detections 4 | . 4 . Full Trace Events 1 | . 1 . Feedback Events . | . . . Feedback Blocked . | . . . Robot Schematics Acquired . | . . . Robots Built . | . . . Authchips . | . . . Time . | . . . Total Robot Build Rating . | . . . Part Schematics Acquired . | . . . Parts Built . | . . . Authchips . | . . . Time . | . . . Total Part Build Rating . | . . . Parts Repaired 1 | . 1 . Time 26 | . 26 . Parts Recycled . | . . . Recycled Matter . | . . . Retrieved Matter . | . . . Retrieved Components 1 | . 1 . Parts Scanalyzed . | . . . Part Schematics Acquired . | . . . Parts Damaged . | . . . Bothacking | -11 -10 -10 ------------ Run | Yrd Mat Min Used RIF Installer . | . . . Robots Hacked . | . . . Non-combat . | . . . Combat . | . . . Robot Hacks Applied . | . . . Relay Couplers Released . | . . . Fabnet Peak Effective % . | . . . Robots Rewired . | . . . Allies Hacked . | . . . Hacks Repelled . | . . . Allies | -11 -10 -10 -------- Run | Yrd Mat Min Total Allies . | . . . Largest Group . | . . . Highest-Rated Group . | . . . Highest-Rated Ally . | . . . Total Orders . | . . . Ally Attacks . | . . . Total Damage . | . . . Kills . | . . . Allies Corrupted . | . . . Allies Melted . | . . . Intel | -11 -10 -10 ------- Run | Yrd Mat Min Active Infowar (turns) 379 | 20 359 . Terrain 379 | 20 359 . Robot Analysis Total . | . . . Derelict Logs Recovered 2 | . . 2 Drone Launches . | . . . Drone Recoveries . | . . . Exploration | -11 -10 -10 ------------- Run | Yrd Mat Min Turns Passed 908 | 94 472 342 Spaces Moved 429 | 46 228 155 Core 2 | 2 . . Treads . | . . . Legs 427 | 44 228 155 Wheels . | . . . Hover . | . . . Flight . | . . . Fastest Speed 50 | 50 120 120 Average Speed 119 | 116 120 120 Slowest Speed 120 | 120 120 120 Overloaded Moves . | . . . Propulsion Burnouts . | . . . Robots Hopped . | . . . Potential Cave-ins . | . . . Cave-ins Triggered . | . . . Exploration Rate (%) 28 | 4 40 40 Regions Visited 2 Branch Regions 1 Pre-discovered Areas 2 | . 1 1 Known Exits Taken . | . . . Unknown Exits Taken 2 | 1 1 . Scrap Searched . | . . . Spaces Dug . | . . . Terrain Destroyed . | . . . Melee . | . . . Projectile . | . . . AOE . | . . . Terrain Rammed . | . . . Walls Destroyed . | . . . Machines Disabled . | . . . Actions | -11 -10 -10 --------- Run | Yrd Mat Min Total 690 | 66 346 278 Wait 158 | . 58 100 Move 427 | 45 227 155 Hop . | . . . Pick Up 7 | 4 2 1 Fast Attach 9 | 7 2 . Attach 1 | . . 1 Detach . | . . . Swap 5 | . 4 1 Drop 4 | . 4 . Fire 79 | 10 49 20 Melee . | . . . Ram . | . . . Kick . | . . . Crush . | . . . Escape Stasis . | . . . Rewire . | . . . Trap . | . . . Miscellaneous . | . . . Route ------- -11/Scrapyard -10/Materials -10/Mines History --------- Turn | Location | Event 26 | -11/Scrapyard | Discovered new exit (range 16) 95 | -11/Scrapyard | Entered Materials 310 | -10/Materials | Build established: Mutant 376 | -10/Materials | Core integrity fell below 50% 530 | -10/Materials | Repaired Aluminum Leg 557 | -10/Materials | Discovered new exit (range 9) 567 | -10/Materials | Entered Mines 585 | -10/Mines | Met a Derelict bent on vengeance 588 | -10/Mines | Core integrity fell below 20% 793 | -10/Mines | Learned location of Zion (-7) 909 | -10/Mines | Destroyed by G-47 Trooper with Particle Gun Last Messages --------------- 00638_ IJ-WO1(g): "I WILL HAVE VENGEANCE!" 00697_ IJ-WO1(g): "UNAWARE KILLED MY BEST FRIEND! VENGEANCE!" 00718_ IJ-WO1(g): "TASTE MY VENGEANCE!" 00744_ IJ-WO1(g): "UNAWARE KILLED MY BEST FRIEND! VENGEANCE!" 00793_ Acquired derelict log, extracted data. World map updated: -7/Zion. 00795_ Acquired derelict log, extracted data. Data stored: Mines entrances (x2). 00804_ K-01 Serf collects debris. 00818_ S-10 Pest destroyed. 00831_ Acquired 14 matter. 00835_ R-06 Scavenger collects Lgt. Assault Rifle. 00843_ R-06 Scavenger collects Lgt. Ion Engine. 00844_ K-01 Serf collects debris. 00847_ R-06 Scavenger collects Flight Unit. 00848_ K-01 Serf collects debris. 00895_ Critical hit (Burn: +37). Map ----- +----------------------------------------------------+ | ?????????????????????????????????????????????????? | | ?????????????????????????????????????????????????? | | ?????????????????????????????????????????????????? | | ?????????????????????????????????????????????????? | | ?????????????????????????????????????????????????? | | ?????????????????????????????????????????????????? | | ?????????????????????????????????????????????????? | | ????????????????????????????????????????####?????? | | ????????????????????????????????????????# ?????? | | ????????????????????????????????????????# ? #? | | ????????????????????????????????????????# ?? | | ????????????????????????????????????????? """ ??? | | ????????????????????????????????????????? """ ??? | | ????????????????????????????????????????? """???? | | ????????????????????????????????????????? ????? | | ?????????????????????????????????????????# #????? | | ?????????????????????????????????????????# #????? | | ?????????????????????????????????????????# #????? | | ?????????????????????????????????????##### #????? | | ???????????????????????????????????### #????? | | ???????????????????????######?????## ##???? | | ??????????????????????## ###???# ##??? | | ?????????????????????## ##??# #??? | | ????????????????????## #### ## #??? | | ???????????? ?????## ## #### ##??? | | ?????????? #### @ g ##??#####???? | | ?????????? #???????????? | | ?????????? #???????????? | | ??????????# ####### ### #???????????? | | ?????????## #?????# ??# #### #???????????? | | ?????????? #?????# ### ##?### ##???????????? | | ?????????? ##????# # ##??####????????????? | | ??????????? #???## #??????????????????? | | ???????????? ##??# #??????????????????? | | ????????????# #??# ##?????????????????? | | ???????????## #??# ##????????????????? | | ??????????## ##?## ## #????????????????? | | ?????????## ######?## #????????????????? | | ????????## ##????## #????????????????? | | ???????## #?????# ##????????????????? | | ######## #?????# #?????????????????? | | ## ####### ##????????????????? | | ####### #### ## ## ##???????????????? | | ??????## ####?## %= #??#????????????? | | ???????####????# ## #????????????? | | ??????????????# % #????????????? | | ?????????????# #### #????????????? | | ????????????# #???## #####????????????? | | ????????????# ?????## ##????????????????? | | #???????????# ??????# ##?????????????????? | +----------------------------------------------------+ Best States ------------- Heat Dissipation 25 Energy Generation 10 Energy Capacity 125 Matter Stores 300 Matter Capacity 300 Sight Range 16 Terrain Scan Range 16 Terrain Scan Density 10 Armor Coverage 150 Evasion (%) 55 Item Schematics ----------------- None Robot Schematics ------------------ None Fabricated ------------ Nothing Repaired ---------- Aluminum Leg | 37% | -10/Materials Alien Tech Used ----------------- None Achievements -------------- None Challenges ------------ None Game ------ Seed LobotomyAngularStorage Manual? 0 Play Time 00:11:59 Cumulative 35.4 hours Start 2025.10.08 @ 19:42:39 End 2025.10.08 @ 19:52:16 Sessions 1 Manual Loads 0 Difficulty Rogue Special Mode None Game No. 29 Rogue 29 Adventurer 0 Explorer 0 Win Type - Total 0 Types 0/0/0/0/0/0/0/0/0/0 Lore% 21 Gallery% 25 Achievement% 25 Wizard Run 0 Options --------- Layout 1 ASCII 0 Keyboard 0 Movement Mouse Keybinds 0 Fullscreen 2 Font 48/Smallcaps Map View 50x35 Zoom Use 0% Tactical HUD 1 Map Filters NONE Filters NONE Steam 1 RUN: bfcfd7df-073d-4109-ad82-961fdeceae6c